fUST/lending_fUST_20260609
["ID","MTS","AMOUNT","RATE_DAILY","PERIOD"]
[424471731,1780939838000,-500.0,8.998e-05,2]
[424471730,1780939838000,-500.0,8.998e-05,2]
[424471726,1780939838000,-500.0,8.998e-05,2]
[424471725,1780939838000,-500.0,8.998e-05,2]
[424471735,1780939838000,-157.9302998,0.00010267,2]
[424471723,1780939838000,-500.0,8.998e-05,2]
[424471734,1780939838000,-600.0,8.998e-05,2]
[424471724,1780939838000,-500.0,8.998e-05,2]
[424471729,1780939838000,-295.7398949,8.998e-05,2]
[424471748,1780939839000,-7922.16607312,0.000148,2]
[424471749,1780939839000,-145276.24434256,0.000148,2]
[424471746,1780939839000,-271.44,0.00014263,2]
[424471747,1780939839000,-10804.36561464,0.000148,2]
[424471750,1780939839000,-638.47524953,0.000148,2]
[424471791,1780939843000,-5000.0,8.472e-05,2]
[424471793,1780939843000,-41480.67623594,0.000148,2]
[424471794,1780939843000,-326.55877297,0.000148,2]
[424471792,1780939843000,-81181.16094814,0.000148,2]
[424471800,1780939846000,-24402.6573646,0.000148,2]
[424471802,1780939911000,-1905.91704303,0.0001436,2]
[424471931,1780941038000,-807.83,0.00012329,2]
[424471928,1780941038000,-232.65,0.00012329,2]
[424471929,1780941038000,-193.87,0.00012329,2]
[424471930,1780941038000,-161.56,0.00012329,2]
[424471932,1780941038000,-165.031,0.00012329,2]
[424471927,1780941038000,-279.18,0.00012329,2]
[424471922,1780941038000,-5000.0,0.00010815,2]
[424471920,1780941038000,-500.0,0.00010814,2]
[424471919,1780941038000,-500.0,0.00010814,2]
[424471924,1780941038000,-482.42,0.00012329,2]
[424471921,1780941038000,-500.0,0.00010814,2]
[424471938,1780941038000,-300.0,0.00012574,2]
[424471918,1780941038000,-500.0,0.00010814,2]
[424471916,1780941038000,-500.0,0.00010814,2]
[424471917,1780941038000,-361.95791736,0.00010814,2]
[424471925,1780941038000,-402.02,0.00012329,2]
[424471926,1780941038000,-335.01,0.00012329,2]
[424471915,1780941038000,-500.0,0.00010814,2]
[424471912,1780941038000,-344.13062678,0.00010814,2]
[424471913,1780941038000,-500.0,0.00010814,2]
[424471911,1780941038000,-5000.0,0.00010707,2]
[424471910,1780941038000,-5000.0,0.000106,2]
[424471909,1780941038000,-543.11802766,0.00010599,2]
[424471914,1780941038000,-500.0,0.00010814,2]
[424471939,1780941038000,-300.0,0.00012574,2]
[424471923,1780941038000,-578.9,0.00012329,2]
[424471933,1780941038000,-5013.6657868,0.00012474,2]
[424471934,1780941038000,-300.0,0.00012574,2]
[424471961,1780941038000,-151.0,0.000143,2]
[424471957,1780941038000,-600.0,0.00013964,2]
[424471955,1780941038000,-185.415432,0.00013699,2]
[424471959,1780941038000,-295.0975718,0.00014209,2]
[424471960,1780941038000,-454.0795225,0.00014209,2]
[424471956,1780941038000,-500.0,0.00013963,2]
[424471958,1780941038000,-3088.6368561,0.00014209,2]
[424471954,1780941038000,-1000.0,0.00013699,2]
[424471950,1780941038000,-500.0,0.00013698,2]
[424471948,1780941038000,-300.0,0.00012574,2]
[424471945,1780941038000,-300.0,0.00012574,2]
[424471949,1780941038000,-500.0,0.00013698,2]
[424471947,1780941038000,-300.0,0.00012574,2]
[424471936,1780941038000,-300.0,0.00012574,2]
[424471937,1780941038000,-300.0,0.00012574,2]
[424471935,1780941038000,-300.0,0.00012574,2]
[424471941,1780941038000,-300.0,0.00012574,2]
[424471943,1780941038000,-300.0,0.00012574,2]
[424471953,1780941038000,-500.0,0.00013698,2]
[424471951,1780941038000,-500.0,0.00013698,2]
[424471940,1780941038000,-300.0,0.00012574,2]
[424471944,1780941038000,-300.0,0.00012574,2]
[424471946,1780941038000,-300.0,0.00012574,2]
[424471942,1780941038000,-300.0,0.00012574,2]
[424471952,1780941038000,-500.0,0.00013698,2]
[424471964,1780941039000,-5013.66578678,0.00014315,2]
[424471965,1780941039000,-151.0,0.000144,2]
[424471966,1780941039000,-151.0,0.000144,2]
[424471963,1780941039000,-500.0,0.00014314,2]
[424471968,1780941039000,-66333.40558353,0.00014474,2]
[424471967,1780941039000,-151.0,0.000144,2]
[424471969,1780941039000,-130147.48672892,0.00014474,2]
[424471970,1780941039000,-376.06921874,0.00014474,2]
[424471962,1780941039000,-151.0,0.000143,2]
[424471994,1780941394000,10000.0,0.00023288,120]
[424471995,1780941415000,10000.0,0.00023288,120]
[424471996,1780941429000,10000.0,0.00023288,120]
[424471997,1780941443000,10000.0,0.00023288,120]
[424471998,1780941452000,10000.0,0.00023288,120]
[424471999,1780941461000,10000.0,0.00023288,120]
[424472000,1780941473000,10000.0,0.00023288,120]
[424472001,1780941499000,6800.0,0.00023288,120]
[424472002,1780941672000,-500.0,9.677e-05,2]
[424472003,1780941689000,-155.70526643,9.677e-05,2]
[424472004,1780941706000,-500.0,9.677e-05,2]
[424472005,1780941723000,-5000.0,9.678e-05,2]
[424472006,1780941740000,-2961.91527019,9.776e-05,2]
[424472007,1780941756000,-5000.0,9.875e-05,2]
[424472028,1780942232000,-390.61902958,9.48e-05,2]
[424472090,1780942238000,-500.0,9.48e-05,2]
[424472089,1780942238000,-500.0,9.48e-05,2]
[424472087,1780942238000,-115.47773984,9.48e-05,2]
[424472095,1780942238000,-500.0,9.48e-05,2]
[424472088,1780942238000,-384.52226016,9.48e-05,2]
[424472084,1780942238000,-109.38097042,9.48e-05,2]
[424472085,1780942238000,-500.0,9.48e-05,2]
[424472098,1780942238000,-500.0,9.48e-05,2]
[424472092,1780942238000,-500.0,9.48e-05,2]
[424472086,1780942238000,-500.0,9.48e-05,2]
[424472091,1780942238000,-487.63289301,9.48e-05,2]
[424472104,1780942238000,-500.0,9.48e-05,2]
[424472103,1780942238000,-500.0,9.48e-05,2]
[424472100,1780942238000,-500.0,9.48e-05,2]
[424472102,1780942238000,-500.0,9.48e-05,2]
[424472094,1780942238000,-500.0,9.48e-05,2]
[424472099,1780942238000,-500.0,9.48e-05,2]
[424472096,1780942238000,-500.0,9.48e-05,2]
[424472097,1780942238000,-613.43713538,9.48e-05,2]
[424472093,1780942238000,-500.0,9.48e-05,2]
[424472101,1780942238000,-500.0,9.48e-05,2]
[424472122,1780942239000,-500.0,9.673e-05,2]
[424472124,1780942239000,-500.0,9.673e-05,2]
[424472126,1780942239000,-500.0,9.673e-05,2]
[424472125,1780942239000,-500.0,9.673e-05,2]
[424472129,1780942239000,-500.0,9.673e-05,2]
[424472128,1780942239000,-500.0,9.673e-05,2]
[424472131,1780942239000,-500.0,9.673e-05,2]
[424472132,1780942239000,-500.0,9.674e-05,2]
[424472130,1780942239000,-500.0,9.673e-05,2]
[424472123,1780942239000,-500.0,9.673e-05,2]
[424472133,1780942239000,-300.0,0.00011029,2]
[424472143,1780942239000,-300.0,0.00011029,2]
[424472127,1780942239000,-500.0,9.673e-05,2]
[424472121,1780942239000,-500.0,9.673e-05,2]
[424472115,1780942239000,-500.0,9.48e-05,2]
[424472114,1780942239000,-500.0,9.48e-05,2]
[424472116,1780942239000,-500.0,9.48e-05,2]
[424472112,1780942239000,-500.0,9.48e-05,2]
[424472145,1780942239000,-300.0,0.00011029,2]
[424472119,1780942239000,-337.11895218,9.673e-05,2]
[424472120,1780942239000,-500.0,9.673e-05,2]
[424472117,1780942239000,-5000.0,9.481e-05,2]
[424472113,1780942239000,-500.0,9.48e-05,2]
[424472111,1780942239000,-500.0,9.48e-05,2]
[424472110,1780942239000,-500.0,9.48e-05,2]
[424472109,1780942239000,-500.0,9.48e-05,2]
[424472108,1780942239000,-500.0,9.48e-05,2]
[424472106,1780942239000,-500.0,9.48e-05,2]
[424472105,1780942239000,-500.0,9.48e-05,2]
[424472118,1780942239000,-5000.0,9.577e-05,2]
[424472135,1780942239000,-300.0,0.00011029,2]
[424472141,1780942239000,-300.0,0.00011029,2]
[424472134,1780942239000,-300.0,0.00011029,2]
[424472169,1780942239000,-1134.089456,0.00014174,2]
[424472168,1780942239000,-26338.82611006,0.00014174,2]
[424472165,1780942239000,-647.81,0.00014174,2]
[424472166,1780942239000,-14922.98942412,0.00014174,2]
[424472167,1780942239000,-2318.91020796,0.00014174,2]
[424472164,1780942239000,-22653.26642806,0.00014174,2]
[424472162,1780942239000,-894.11607909,0.00014174,2]
[424472163,1780942239000,-914.78691073,0.00014174,2]
[424472161,1780942239000,-1664.965549,0.0001383,2]
[424472160,1780942239000,-1000.0,0.00013699,2]
[424472159,1780942239000,-185.415433,0.00013699,2]
[424472155,1780942239000,-500.0,0.00013698,2]
[424472152,1780942239000,-502.34012693,0.00013698,2]
[424472156,1780942239000,-602.08194991,0.00013698,2]
[424472144,1780942239000,-300.0,0.00011029,2]
[424472154,1780942239000,-500.0,0.00013698,2]
[424472151,1780942239000,-163.22,0.00013698,2]
[424472148,1780942239000,-251.14816907,0.00011961,2]
[424472149,1780942239000,-1664.965549,0.00012756,2]
[424472150,1780942239000,-1664.965549,0.00013293,2]
[424472146,1780942239000,-300.0,0.00011029,2]
[424472158,1780942239000,-500.0,0.00013698,2]
[424472157,1780942239000,-500.0,0.00013698,2]
[424472147,1780942239000,-300.0,0.00011029,2]
[424472138,1780942239000,-300.0,0.00011029,2]
[424472140,1780942239000,-300.0,0.00011029,2]
[424472137,1780942239000,-300.0,0.00011029,2]
[424472139,1780942239000,-300.0,0.00011029,2]
[424472142,1780942239000,-300.0,0.00011029,2]
[424472136,1780942239000,-300.0,0.00011029,2]
[424472153,1780942239000,-500.0,0.00013698,2]
[424472107,1780942239000,-500.0,9.48e-05,2]
[424472172,1780942241000,-13200.97001653,0.00014174,2]
[424472173,1780942241000,-4786.12112569,0.00014174,2]
[424472174,1780942241000,-1309.81679593,0.00014174,2]
[424472178,1780942244000,-830.92525342,0.00014174,2]
[424472177,1780942244000,-9376.999065,0.00014174,2]
[424472190,1780942246000,-569.37999998,0.00014174,2]
[424472193,1780942247000,-118548.52491811,0.00014174,2]
[424472192,1780942247000,-30290.80267284,0.00014174,2]
[424472191,1780942247000,-131469.14805578,0.00014174,2]
[424472343,1780943440000,-295.829323,8.482e-05,2]
[424472691,1780943446000,-500.0,8.482e-05,2]
[424472690,1780943446000,-204.170677,8.482e-05,2]
[424472695,1780943446000,-500.0,8.482e-05,2]
[424472694,1780943446000,-500.0,8.482e-05,2]
[424472699,1780943446000,-500.0,8.482e-05,2]
[424472698,1780943446000,-500.0,8.482e-05,2]
[424472693,1780943446000,-500.0,8.482e-05,2]
[424472700,1780943446000,-500.0,8.482e-05,2]
[424472697,1780943446000,-500.0,8.482e-05,2]
[424472705,1780943446000,-459.43003787,8.482e-05,2]
[424472701,1780943446000,-500.0,8.482e-05,2]
[424472696,1780943446000,-207.75646935,8.482e-05,2]
[424472704,1780943446000,-500.0,8.482e-05,2]
[424472702,1780943446000,-500.0,8.482e-05,2]
[424472703,1780943446000,-500.0,8.482e-05,2]
[424472708,1780943733000,152.0,0.0001007,30]
[424472711,1780943796000,5000.0,8.002e-05,2]
[424472712,1780943805000,5000.0,8.002e-05,2]
[424472713,1780943820000,5000.0,8.002e-05,2]
[424472714,1780943829000,5000.0,8.002e-05,2]
[424472715,1780943844000,5000.0,8.002e-05,2]
[424472716,1780943852000,5000.0,8.002e-05,2]
[424472717,1780943867000,5000.0,8.002e-05,2]
[424472718,1780943875000,5000.0,8.002e-05,2]
[424472719,1780943890000,5000.0,8.002e-05,2]
[424472720,1780943965000,948.2649154,8.002e-05,2]
[424472721,1780943971000,5000.0,8.002e-05,2]
[424472744,1780943974000,500.0,8.001e-05,2]
[424472722,1780943974000,500.0,8.001e-05,2]
[424472723,1780943974000,500.0,8.001e-05,2]
[424472725,1780943974000,500.0,8.001e-05,2]
[424472724,1780943974000,462.32990041,8.001e-05,2]
[424472726,1780943974000,500.0,8.001e-05,2]
[424472729,1780943974000,500.0,8.001e-05,2]
[424472728,1780943974000,500.0,8.001e-05,2]
[424472730,1780943974000,500.0,8.001e-05,2]
[424472731,1780943974000,423.76571694,8.001e-05,2]
[424472733,1780943974000,500.0,8.001e-05,2]
[424472727,1780943974000,500.0,8.001e-05,2]
[424472736,1780943974000,500.0,8.001e-05,2]
[424472732,1780943974000,500.0,8.001e-05,2]
[424472742,1780943974000,500.0,8.001e-05,2]
[424472741,1780943974000,500.0,8.001e-05,2]
[424472740,1780943974000,500.0,8.001e-05,2]
[424472739,1780943974000,500.0,8.001e-05,2]
[424472743,1780943974000,500.0,8.001e-05,2]
[424472737,1780943974000,500.0,8.001e-05,2]
[424472735,1780943974000,500.0,8.001e-05,2]
[424472734,1780943974000,500.0,8.001e-05,2]
[424472738,1780943974000,500.0,8.001e-05,2]
[424472748,1780943975000,500.0,8.001e-05,2]
[424472746,1780943975000,500.0,8.001e-05,2]
[424472747,1780943975000,500.0,8.001e-05,2]
[424472745,1780943975000,500.0,8.001e-05,2]
[424472749,1780943975000,500.0,8.001e-05,2]
[424472751,1780944086000,5000.0,8.002e-05,2]
[424472752,1780944108000,5000.0,8.002e-05,2]
[424472753,1780944132000,5000.0,8.002e-05,2]
[424472754,1780944139000,602.64063522,8.001e-05,2]
[424472755,1780944139000,500.0,8.001e-05,2]
[424472756,1780944154000,5000.0,8.002e-05,2]
[424472757,1780944171000,440.25887782,8.001e-05,2]
[424472758,1780944176000,5000.0,8.002e-05,2]
[424472759,1780944199000,3558.97619308,8.002e-05,2]
[424472791,1780944632000,-333.44155148,0.00012211,2]
[424472790,1780944632000,-1096.362462,0.00012211,2]
[424472788,1780944632000,-300.0,0.0001221,2]
[424472789,1780944632000,-300.0,0.0001221,2]
[424472787,1780944632000,-2255.3696701,0.0001168,2]
[424472786,1780944632000,-279.87873728,0.0001164,2]
[424472784,1780944632000,-12.74562983,0.00011526,2]
[424472785,1780944632000,-254.96467847,0.00011526,2]
[424472783,1780944632000,-2478.2583076,0.000115,2]
[424472829,1780944638000,-500.0,0.00012427,2]
[424472832,1780944638000,-2872.3285377,0.00012432,2]
[424472834,1780944638000,-1041.106583,0.00013098,2]
[424472847,1780944638000,-500.0,0.00013698,2]
[424472835,1780944638000,-165.59332112,0.0001328,2]
[424472837,1780944638000,-177.0,0.00013401,2]
[424472848,1780944638000,-1000.0,0.00013699,2]
[424472831,1780944638000,-500.0,0.00012427,2]
[424472833,1780944638000,-1943.82442939,0.000125,2]
[424472830,1780944638000,-500.0,0.00012427,2]
[424472823,1780944638000,-500.0,0.00012427,2]
[424472827,1780944638000,-500.0,0.00012427,2]
[424472824,1780944638000,-569.65067006,0.00012427,2]
[424472821,1780944638000,-500.0,0.00012427,2]
[424472838,1780944638000,-15370.62254356,0.000136,2]
[424472820,1780944638000,-500.0,0.00012427,2]
[424472818,1780944638000,-356.60516171,0.00012427,2]
[424472817,1780944638000,-3744.73043692,0.00012211,2]
[424472815,1780944638000,-345.9269227,0.00012211,2]
[424472816,1780944638000,-602.091,0.00012211,2]
[424472828,1780944638000,-500.0,0.00012427,2]
[424472822,1780944638000,-500.0,0.00012427,2]
[424472836,1780944638000,-420.0,0.00013401,2]
[424472841,1780944638000,-500.0,0.00013698,2]
[424472862,1780944638000,-3727.21370763,0.000137,2]
[424472858,1780944638000,-419.43816636,0.00013699,2]
[424472859,1780944638000,-16665.41484683,0.000137,2]
[424472861,1780944638000,-448.524,0.000137,2]
[424472857,1780944638000,-502.32203895,0.00013699,2]
[424472860,1780944638000,-1444153.17598172,0.000137,2]
[424472839,1780944638000,-2679.68922355,0.000136,2]
[424472854,1780944638000,-234.88537316,0.00013699,2]
[424472855,1780944638000,-268.44042647,0.00013699,2]
[424472853,1780944638000,-558.44471199,0.00013699,2]
[424472856,1780944638000,-500.0,0.00013699,2]
[424472851,1780944638000,-312.72903872,0.00013699,2]
[424472852,1780944638000,-357.40461568,0.00013699,2]
[424472849,1780944638000,-300.0,0.00013699,2]
[424472840,1780944638000,-1041.106583,0.00013649,2]
[424472844,1780944638000,-500.0,0.00013698,2]
[424472842,1780944638000,-500.0,0.00013698,2]
[424472846,1780944638000,-500.0,0.00013698,2]
[424472845,1780944638000,-500.0,0.00013698,2]
[424472850,1780944638000,-462.644416,0.00013699,2]
[424472843,1780944638000,-500.0,0.00013698,2]
[424472819,1780944638000,-500.0,0.00012427,2]
[424472979,1780944640000,-68172.28909702,0.000137,2]
[424472953,1780944640000,-1634.63594125,0.000137,2]
[424472951,1780944640000,-868.61646562,0.000137,2]
[424472949,1780944640000,-2344.12663466,0.000137,2]
[424472955,1780944640000,-585.243046,0.000137,2]
[424473198,1780944643000,-2119.25919702,0.000137,2]
[424473199,1780944643000,-287.36237824,0.000137,2]
[424473209,1780944646000,-10500.0,0.000137,2]
[424473210,1780944646000,-3652.39590425,0.000137,2]
[424473215,1780945273000,-372.362627,0.0001054,2]
[424473275,1780945832000,-2000.8214882,9.135e-05,2]
[424473272,1780945832000,-2577.1285118,8.954e-05,2]
[424473273,1780945832000,-5000.0,9.044e-05,2]
[424473323,1780945838000,-500.0,9.043e-05,2]
[424473325,1780945838000,-500.0,9.043e-05,2]
[424473326,1780945838000,-500.0,9.043e-05,2]
[424473324,1780945838000,-500.0,9.043e-05,2]
[424473328,1780945838000,-500.0,9.043e-05,2]
[424473332,1780945838000,-500.0,9.043e-05,2]
[424473330,1780945838000,-500.0,9.043e-05,2]
[424473331,1780945838000,-500.0,9.043e-05,2]
[424473329,1780945838000,-500.0,9.043e-05,2]
[424473327,1780945838000,-500.0,9.043e-05,2]
[424473335,1780945838000,-175.21036654,9.043e-05,2]
[424473334,1780945838000,-500.0,9.043e-05,2]
[424473336,1780945838000,-500.0,9.043e-05,2]
[424473322,1780945838000,-500.0,9.043e-05,2]
[424473320,1780945838000,-500.0,9.043e-05,2]
[424473317,1780945838000,-500.0,9.043e-05,2]
[424473314,1780945838000,-500.0,9.043e-05,2]
[424473305,1780945838000,-500.0,9.043e-05,2]
[424473306,1780945838000,-500.0,9.043e-05,2]
[424473309,1780945838000,-500.0,9.043e-05,2]
[424473307,1780945838000,-500.0,9.043e-05,2]
[424473310,1780945838000,-370.14310102,9.043e-05,2]
[424473308,1780945838000,-500.0,9.043e-05,2]
[424473338,1780945838000,-500.0,9.043e-05,2]
[424473311,1780945838000,-500.0,9.043e-05,2]
[424473315,1780945838000,-500.0,9.043e-05,2]
[424473313,1780945838000,-500.0,9.043e-05,2]
[424473318,1780945838000,-500.0,9.043e-05,2]
[424473321,1780945838000,-500.0,9.043e-05,2]
[424473319,1780945838000,-500.0,9.043e-05,2]
[424473316,1780945838000,-500.0,9.043e-05,2]
[424473312,1780945838000,-500.0,9.043e-05,2]
[424473346,1780945838000,-633.70788337,9.043e-05,2]
[424473333,1780945838000,-500.0,9.043e-05,2]
[424473337,1780945838000,-500.0,9.043e-05,2]
[424473358,1780945838000,-300.0,9.318e-05,2]
[424473360,1780945838000,-374.77092779,9.318e-05,2]
[424473362,1780945838000,-500.0,9.318e-05,2]
[424473361,1780945838000,-500.0,9.318e-05,2]
[424473363,1780945838000,-500.0,9.318e-05,2]
[424473365,1780945838000,-500.0,9.318e-05,2]
[424473354,1780945838000,-500.0,9.043e-05,2]
[424473364,1780945838000,-500.0,9.318e-05,2]
[424473371,1780945838000,-500.0,9.319e-05,2]
[424473367,1780945838000,-500.0,9.318e-05,2]
[424473369,1780945838000,-210.87971457,9.318e-05,2]
[424473372,1780945838000,-5840.08419497,9.414e-05,2]
[424473370,1780945838000,-500.0,9.318e-05,2]
[424473341,1780945838000,-500.0,9.043e-05,2]
[424473366,1780945838000,-500.0,9.318e-05,2]
[424473356,1780945838000,-500.0,9.043e-05,2]
[424473368,1780945838000,-500.0,9.318e-05,2]
[424473355,1780945838000,-500.0,9.043e-05,2]
[424473353,1780945838000,-500.0,9.043e-05,2]
[424473340,1780945838000,-500.0,9.043e-05,2]
[424473342,1780945838000,-500.0,9.043e-05,2]
[424473343,1780945838000,-500.0,9.043e-05,2]
[424473344,1780945838000,-500.0,9.043e-05,2]
[424473345,1780945838000,-500.0,9.043e-05,2]
[424473347,1780945838000,-500.0,9.043e-05,2]
[424473339,1780945838000,-500.0,9.043e-05,2]
[424473348,1780945838000,-500.0,9.043e-05,2]
[424473350,1780945838000,-500.0,9.043e-05,2]
[424473352,1780945838000,-500.0,9.043e-05,2]
[424473351,1780945838000,-500.0,9.043e-05,2]
[424473359,1780945838000,-300.0,9.318e-05,2]
[424473357,1780945838000,-2999.1785118,9.135e-05,2]
[424473349,1780945838000,-500.0,9.043e-05,2]
[424473425,1780945839000,-549.44,0.00013698,2]
[424473416,1780945839000,-500.0,0.00013698,2]
[424473418,1780945839000,-500.0,0.00013698,2]
[424473419,1780945839000,-500.0,0.00013698,2]
[424473415,1780945839000,-500.0,0.00013698,2]
[424473410,1780945839000,-167.84843612,0.00013601,2]
[424473413,1780945839000,-5335.25220826,0.00013612,2]
[424473412,1780945839000,-151.0,0.00013601,2]
[424473407,1780945839000,-171.06,0.00013138,2]
[424473403,1780945839000,-192.94,0.00012887,2]
[424473411,1780945839000,-500.0,0.00013601,2]
[424473421,1780945839000,-500.0,0.00013698,2]
[424473414,1780945839000,-500.0,0.00013698,2]
[424473423,1780945839000,-500.0,0.00013698,2]
[424473439,1780945839000,-500.0,0.00013698,2]
[424473417,1780945839000,-500.0,0.00013698,2]
[424473426,1780945839000,-500.0,0.00013698,2]
[424473422,1780945839000,-500.0,0.00013698,2]
[424473424,1780945839000,-500.0,0.00013698,2]
[424473427,1780945839000,-500.0,0.00013698,2]
[424473428,1780945839000,-500.0,0.00013698,2]
[424473438,1780945839000,-253.23,0.00013698,2]
[424473440,1780945839000,-500.0,0.00013698,2]
[424473429,1780945839000,-500.0,0.00013698,2]
[424473433,1780945839000,-500.0,0.00013698,2]
[424473435,1780945839000,-500.0,0.00013698,2]
[424473430,1780945839000,-500.0,0.00013698,2]
[424473434,1780945839000,-500.0,0.00013698,2]
[424473408,1780945839000,-172.88,0.00013138,2]
[424473420,1780945839000,-500.0,0.00013698,2]
[424473402,1780945839000,-191.64,0.00012821,2]
[424473431,1780945839000,-231.24142281,0.00013698,2]
[424473404,1780945839000,-183.94,0.00012969,2]
[424473374,1780945839000,-500.0,9.593e-05,2]
[424473373,1780945839000,-1576.860581,9.551e-05,2]
[424473375,1780945839000,-948.0179227,9.8e-05,2]
[424473377,1780945839000,-300.0,9.895e-05,2]
[424473385,1780945839000,-1576.860581,0.00010757,2]
[424473380,1780945839000,-300.0,0.0001025,2]
[424473384,1780945839000,-500.0,0.00010689,2]
[424473376,1780945839000,-500.0,9.867e-05,2]
[424473378,1780945839000,-1576.860581,9.953e-05,2]
[424473379,1780945839000,-420.0,0.0001025,2]
[424473381,1780945839000,-3630.1826661,0.00010265,2]
[424473382,1780945839000,-1576.860581,0.00010355,2]
[424473383,1780945839000,-500.0,0.00010415,2]
[424473387,1780945839000,-8836.4629976,0.00010959,2]
[424473405,1780945839000,-171.68,0.00013063,2]
[424473386,1780945839000,-600.0,0.00010857,2]
[424473393,1780945839000,-216.0,0.00011275,2]
[424473399,1780945839000,-5840.08419497,0.00012255,2]
[424473389,1780945839000,-500.0,0.00010963,2]
[424473398,1780945839000,-720.0,0.00011943,2]
[424473394,1780945839000,-250.0,0.00011507,2]
[424473392,1780945839000,-159.4920842,0.00011196,2]
[424473395,1780945839000,-1576.860581,0.00011561,2]
[424473396,1780945839000,-585.94554925,0.0001179,2]
[424473397,1780945839000,-166.1586,0.00011796,2]
[424473390,1780945839000,-4917.1445578,0.00011147,2]
[424473391,1780945839000,-1576.860581,0.00011159,2]
[424473401,1780945839000,-190.69,0.00012772,2]
[424473400,1780945839000,-290.40314326,0.00012283,2]
[424473409,1780945839000,-168.3888056,0.00013601,2]
[424473388,1780945839000,-190.20154125,0.00010959,2]
[424473432,1780945839000,-500.0,0.00013698,2]
[424473406,1780945839000,-864.0,0.00013137,2]
[424473437,1780945839000,-500.0,0.00013698,2]
[424473474,1780945839000,-500.0,0.00013698,2]
[424473478,1780945839000,-243.07698613,0.00013699,2]
[424473475,1780945839000,-384.6211677,0.00013698,2]
[424473477,1780945839000,-178.15414889,0.00013699,2]
[424473476,1780945839000,-1000.0,0.00013699,2]
[424473479,1780945839000,-346.01500711,0.00013699,2]
[424473480,1780945839000,-622.8270128,0.00013699,2]
[424473481,1780945839000,-320.67746799,0.00013699,2]
[424473482,1780945839000,-636.46,0.00013699,2]
[424473490,1780945839000,-636.46,0.00013699,2]
[424473486,1780945839000,-636.46,0.00013699,2]
[424473488,1780945839000,-636.46,0.00013699,2]
[424473489,1780945839000,-636.46,0.00013699,2]
[424473491,1780945839000,-636.46,0.00013699,2]
[424473500,1780945839000,-636.46,0.00013699,2]
[424473485,1780945839000,-636.46,0.00013699,2]
[424473483,1780945839000,-636.46,0.00013699,2]
[424473487,1780945839000,-636.46,0.00013699,2]
[424473492,1780945839000,-636.46,0.00013699,2]
[424473493,1780945839000,-636.46,0.00013699,2]
[424473494,1780945839000,-636.46,0.00013699,2]
[424473503,1780945839000,-636.52571783,0.00013699,2]
[424473495,1780945839000,-636.46,0.00013699,2]
[424473504,1780945839000,-1107.24802276,0.00013699,2]
[424473496,1780945839000,-636.46,0.00013699,2]
[424473497,1780945839000,-636.46,0.00013699,2]
[424473498,1780945839000,-636.46,0.00013699,2]
[424473499,1780945839000,-636.46,0.00013699,2]
[424473501,1780945839000,-636.46,0.00013699,2]
[424473436,1780945839000,-500.0,0.00013698,2]
[424473484,1780945839000,-636.46,0.00013699,2]
[424473473,1780945839000,-500.0,0.00013698,2]
[424473502,1780945839000,-636.46,0.00013699,2]
[424473472,1780945839000,-500.0,0.00013698,2]
[424473441,1780945839000,-500.0,0.00013698,2]
[424473443,1780945839000,-500.0,0.00013698,2]
[424473442,1780945839000,-639.0,0.00013698,2]
[424473446,1780945839000,-500.0,0.00013698,2]
[424473445,1780945839000,-500.0,0.00013698,2]
[424473451,1780945839000,-636.46,0.00013698,2]